Cogmind - Beta 11 X10 @@@ ROGUE MODE // 2022.02.11 @ 10:32:24 Player: gammafunk Result: Self-destructed Performance ------------- Evolutions (4) 2000 Regions Visited (11) 2200 Robots Destroyed (142) 710 Value Destroyed (4444) 4444 Prototype IDs (17) 340 Alien Tech Used (0) 0 Bonus (379) 379 TOTAL SCORE: 10073 Bonus ------- Follower Combat Kills 278 Met Data Miner 300 Friendly Fire -199 Cogmind --------- Core Integrity 731/850 Matter 118/300 Energy 100/100 System Corruption 0% Temperature Cool (0) Movement Treading (490) Ox4 Location -6/Factory Parts ------- > --- POWER (1) -------- (None) > --- PROPULSION (5) --- Armored Treads > --- UTILITY (5) ------ Huge Storage Unit Makeshift Hacking Suite > --- WEAPON (4) ------- Heavy Assault Rifle High-powered Shotgun Flak Gun Flak Gun > --- INVENTORY (25) --- Improved Ion Engine Light Nuclear Core Improved Cooling System Matter Compressor (0) Improved Sensor Array Experimental Sensor Array Improved Signal Interpreter Advanced Terrain Scan Processor Armor Integrity Analyzer Armor Integrity Analyzer Weapon Cycler Transmission Jammer Transmission Jammer Improved Weapon Shielding Hardened Medium Armor Plating Focal Shield Hacking Suite Gauss Rifle EMP Blaster Rocket Launcher Remote Datajack Plasma Cutter Power Maul Peak State ------------ > --- POWER ------------ Improved Deuterium Engine > --- PROPULSION ------- Armored Treads Armored Treads Advanced Treads Advanced Treads Medium Treads > --- UTILITY ---------- Huge Storage Unit Experimental Sensor Array Advanced Signal Interpreter Hardened Medium Armor Plating Makeshift Hacking Suite > --- WEAPON ----------- High-powered Shotgun Gauss Rifle Flak Gun Power Maul > --- INVENTORY -------- Improved Ion Engine Light Nuclear Core Improved Cooling System Matter Compressor Improved Sensor Array Improved Signal Interpreter Advanced Terrain Scan Processor Armor Integrity Analyzer Armor Integrity Analyzer Weapon Cycler Weapon Cycler Transmission Jammer Transmission Jammer Improved Weapon Shielding Hardened Medium Armor Plating Focal Shield Hacking Suite Heavy Assault Rifle Gauss Rifle Flak Gun EMP Blaster Rocket Launcher Remote Datajack Plasma Cutter [Rating: 65] Favorites ----------- Power Improved Ion Engine Engine Improved Ion Engine Power Core Light Nuclear Core Propulsion Improved Treads Treads Improved Treads Utility High-capacity Storage Unit Device Experimental Sensor Array Storage High-capacity Storage Unit Processor Improved Signal Interpreter Hackware Hacking Suite Protection Light Armor Plating Weapon Improved Assault Rifle Energy Gun Small Laser Energy Cannon Advanced Beam Cannon Ballistic Gun Improved Assault Rifle Launcher Rocket Launcher Special Weapon Plasma Cutter Impact Weapon Heavy Mace Build | -11 -10 -10 -9 -9 -8 -7 -7 -7 -7 -6 -6 ------- Run | Scr Mat Min Mat Min Mat Fac Low Low Dat Pro Fac Slots Evolved 8 | . . . 2 . 2 2 . . . . 2 Power . | . . . . . . . . . . . . Propulsion 3 | . . . 1 . 1 1 . . . . . Utility 3 | . . . . . 1 . . . . . 2 Weapon 2 | . . . 1 . . 1 . . . . . Parts Attached 157 | 7 11 2 15 5 37 15 7 22 4 7 25 Power 12 | 1 1 1 2 1 3 . . . . . 3 Engine 11 | 1 1 1 2 1 3 . . . . . 2 Core 1 | . . . . . . . . . . . 1 Reactor . | . . . . . . . . . . . . Propulsion 31 | 2 2 . 2 3 14 4 1 1 . 1 1 Treads 31 | 2 2 . 2 3 14 4 1 1 . 1 1 Leg . | . . . . . . . . . . . . Wheel . | . . . . . . . . . . . . Hover . | . . . . . . . . . . . . Flight . | . . . . . . . . . . . . Utility 52 | 2 2 1 4 1 4 3 5 12 . 4 14 Device 22 | 1 1 . . . . . 2 6 . 2 10 Storage 4 | 1 1 . 1 . . 1 . . . . . Processor 2 | . . . . . . . 1 . . 1 . Hackware 2 | . . . . . 1 . . . . . 1 Protection 22 | . . 1 3 1 3 2 2 6 . 1 3 Artifact . | . . . . . . . . . . . . Weapon 62 | 2 6 . 7 . 16 8 1 9 4 2 7 Energy Gun 4 | 1 3 . . . . . . . . . . Energy Cannon 1 | . . . . . 1 . . . . . . Ballistic Gun 45 | 1 3 . 7 . 13 7 1 4 4 1 4 Ballistic Cannon . | . . . . . . . . . . . . Launcher 6 | . . . . . 1 . . 3 . 1 1 Special Weapon 2 | . . . . . . . . 1 . . 1 Impact Weapon 4 | . . . . . 1 1 . 1 . . 1 Slashing Weapon . | . . . . . . . . . . . . Piercing Weapon . | . . . . . . . . . . . . Special Melee Weapon . | . . . . . . . . . . . . Unidentified Prototypes 2 | . 1 . . . 1 . . . . . . Parts Lost 24 | . . . 1 2 9 . . . . . 12 Power 2 | . . . . . 1 . . . . . 1 Propulsion 11 | . . . . 2 4 . . . . . 5 Utility 5 | . . . . . 1 . . . . . 4 Weapon 6 | . . . 1 . 3 . . . . . 2 Highest Loss Streak 9 | . . . 1 1 5 . . . . . 9 To Critical Strikes . | . . . . . . . . . . . . Average Slot Usage (%) 99 | . 100 100 99 99 99 99 100 100 71 100 98 Engine 9 | . 14 14 11 11 9 7 7 7 7 7 5 Treads 34 | . 28 28 32 32 35 38 38 38 38 38 32 Device 3 | . 14 2 . . . . 6 6 . 6 7 Storage 9 | . 14 14 11 11 9 7 7 7 7 7 6 Processor 2 | . . . . . . . 6 7 7 7 5 Hackware 3 | . . . . . 8 7 . . . . 5 Protection 6 | . . 11 11 11 8 7 . . 7 . 4 Ballistic Gun 28 | . 25 28 32 33 26 28 30 28 2 27 24 Naked Turns . | . . . . . . . . . . . . Heaviest Build 114 | 14 32 35 59 64 64 105 105 106 104 104 114 Greatest Support 115 | 40 46 46 69 69 86 115 115 115 112 113 113 Greatest Overweight (x) 2 | . . . . 1 1 . . . . . 2 Average Overweight (x) . | . . . . . . . . . . . . Largest Inventory Capacity 25 | 8 15 15 20 20 20 25 25 25 25 25 25 Average Capacity 20 | 6 14 15 19 20 20 21 25 25 25 25 25 Most Carried 25 | 5 15 15 20 20 20 25 25 25 25 25 25 Average Carried 19 | 2 13 14 18 19 19 20 24 24 25 24 24 Final Capacity 25 | 8 15 15 20 20 20 25 25 25 25 25 25 Final Carried 25 | 5 14 15 20 20 20 25 25 25 25 25 23 Class Distribution -------------------- 31% | Tank 29% | Mutant 18% | Scavenger-Tank 17% | Skirmisher Dominant Class ---------------- Mutant | -10/Materials Mutant | -10/Mines Tank | -9/Materials Tank | -9/Mines Scavenger-Tank | -8/Materials Tank | -7/Factory Skirmisher | -7/Lower Caves Skirmisher | -7/Lower Caves Mutant | -7/Data Miner Skirmisher | -6/Proximity Caves Scavenger-Skirmisher | -6/Factory Resources | -11 -10 -10 -9 -9 -8 -7 -7 -7 -7 -6 -6 ----------- Run | Scr Mat Min Mat Min Mat Fac Low Low Dat Pro Fac Matter Collected 4899 | 256 341 104 838 157 1305 448 259 274 . 354 563 Remotely . | . . . . . . . . . . . . Salvage Created 5324 | 47 464 220 1359 347 1630 440 74 197 . 40 506 Parts 343 | 8 33 13 108 21 101 28 2 8 . . 21 Haulers Intercepted 8 | . 2 . 3 . 3 . . . . . . Recyclers Shooed 5 | . . . 2 . 1 2 . . . . . Parts Field Recycled . | . . . . . . . . . . . . Retrieved Matter . | . . . . . . . . . . . . Parts Self-Destructed 14 | . . . . . . . 1 8 . 5 . Prevented . | . . . . . . . . . . . . Kills | -11 -10 -10 -9 -9 -8 -7 -7 -7 -7 -6 -6 ------- Run | Scr Mat Min Mat Min Mat Fac Low Low Dat Pro Fac Combat Hostiles Destroyed 103 | . 10 8 25 8 25 8 2 3 . 1 13 Guns 100 | . 10 8 25 8 25 8 2 3 . 1 10 AOE 3 | . . . . . . . . . . . 3 Classes Destroyed 17 | 2 6 1 3 . 2 1 1 . . . 1 Worker 7 | . 1 . 3 . 1 2 . . . . . Builder 5 | . 1 . 3 . . . . . . . 1 Tunneler 1 | 1 . . . . . . . . . . . Hauler 8 | . 2 . 3 . 3 . . . . . . Recycler 5 | 1 . . . 1 2 . . . . . 1 Operator 1 | . . . . . 1 . . . . . . Watcher 11 | . 2 . 3 . 4 2 . . . . . Swarmer 23 | . 3 3 8 4 3 . . . . . 2 Grunt 36 | . 7 4 5 2 11 . . 2 . 1 4 Brawler 3 | . . . 1 . 2 . . . . . . Duelist 2 | . . . 1 . . . . 1 . . . Sentry 22 | . . . 10 2 6 3 . . . . 1 Demolisher 1 | . . 1 . . . . . . . . . Hunter 6 | . . . . . 3 2 1 . . . . Programmer 7 | . . . . . . 3 . . . . 4 Heavy 2 | . . . . . . . . . . . 2 Thug 1 | . . . 1 . . . . . . . . Mutant 1 | . . . . . . . 1 . . . . Best Kill Streak 7 | 2 5 4 6 4 7 2 1 2 . 1 5 Combat Bots Only 7 | . 2 4 6 4 7 2 1 2 . 1 5 Max Kills in Single Turn 3 | 1 2 2 2 2 1 1 1 1 . 1 3 Gunslinging 1 | . . 1 1 1 . . . . . . . Exploded 3 | . . . . . . . . . . . 3 Melee . | . . . . . . . . . . . . Uniques/NPCs Destroyed . | . . . . . . . . . . . . Combat | -11 -10 -10 -9 -9 -8 -7 -7 -7 -7 -6 -6 -------- Run | Scr Mat Min Mat Min Mat Fac Low Low Dat Pro Fac Damage Taken 6161 | . 420 295 681 338 1776 971 33 171 . 195 1281 Core 619 | . 98 36 89 31 172 47 11 . . 16 119 Absorbed by Shields . | . . . . . . . . . . . . Regen/Repaired (Parts) 325 | . . . 121 . 204 . . . . . . Core Remaining (%) 74 | 100 . 46 . 70 68 . . . . 89 . Volleys Fired 307 | 1 44 14 67 13 80 25 8 18 . 7 30 Largest 4 | 2 2 2 3 3 3 4 4 4 . 4 4 Hottest 109 | 60 70 46 69 69 81 109 109 109 . 106 109 Shots Fired 881 | 2 88 28 201 39 238 101 19 34 . 23 108 Gun 861 | 2 88 28 201 39 237 101 19 21 . 21 104 Cannon . | . . . . . . . . . . . . Launcher 12 | . . . . . 1 . . 6 . 2 3 Special 8 | . . . . . . . . 7 . . 1 Kinetic 847 | 1 75 28 201 39 237 101 19 21 . 21 104 Thermal 14 | 1 6 . . . . . . 7 . . . Explosive 12 | . . . . . 1 . . 6 . 2 3 Electromagnetic 7 | . 7 . . . . . . . . . . Robot Hit Streak 18 | 1 15 16 14 7 18 9 7 13 . 4 11 Robot Miss Streak 6 | 1 3 2 3 1 4 6 3 3 . 5 4 Penetration Max 1 | . . . . . 1 . . . . . . Secondary Targets 19 | . . 5 3 3 6 . . . . . 2 Max Gunslinging Chain 1 | . . 1 1 1 1 . . . . . 1 Shots Hit Robots 614 | 1 68 19 142 27 154 69 12 21 . 16 85 Core Hits 300 | 1 26 11 57 12 68 39 12 18 . 6 50 Critical Kills 4 | . . . . . 4 . . . . . . Critical Parts Destroyed 5 | . . . 2 . 3 . . . . . . Critical Strikes 10 | . 1 . 2 . 7 . . . . . . Burn 1 | . 1 . . . . . . . . . . Destroy 8 | . . . 2 . 6 . . . . . . Smash 1 | . . . . . 1 . . . . . . Melee Attacks 10 | . . . . . 2 4 . 2 . . 2 Impact 10 | . . . . . 2 4 . 2 . . 2 Slashing . | . . . . . . . . . . . . Piercing . | . . . . . . . . . . . . Sneak Attacks 4 | . . . . . 1 1 . . . . 2 Combat Hostiles . | . . . . . . . . . . . . Follow-up Attacks . | . . . . . . . . . . . . Damage Inflicted 11698 | 18 1035 315 2407 428 2774 1369 230 362 . 250 2510 Guns 10095 | 14 1002 297 2349 427 2545 1093 230 301 . 250 1587 Cannons . | . . . . . . . . . . . . Explosions 663 | . . . . . . . . 6 . . 657 Melee 595 | . . . . . 144 185 . . . . 266 Ramming 290 | 4 33 18 58 1 85 91 . . . . . Kinetic 9938 | 14 845 297 2349 427 2545 1093 230 301 . 250 1587 Thermal 775 | . 63 . . . . . . 55 . . 657 Explosive 6 | . . . . . . . . 6 . . . Electromagnetic 94 | . 94 . . . . . . . . . . Impact 595 | . . . . . 144 185 . . . . 266 Slashing . | . . . . . . . . . . . . Piercing . | . . . . . . . . . . . . Highest Corruption 2 | . . . . . . 2 2 2 2 2 . Average Corruption 2 | . . . . . . 2 2 2 2 2 . Corruption Purged . | . . . . . . . . . . . . Corruption Blocked . | . . . . . . . . . . . . Effects 54 | . . . . . . 16 10 17 1 10 . Message Errors 14 | . . . . . . 3 3 5 1 2 . Matter Fused 15 | . . . . . . 7 1 4 . 3 . Heat Flow Errors 4 | . . . . . . . 1 3 . . . Energy Discharges 5 | . . . . . . 1 2 1 . 1 . Parts Rejected 1 | . . . . . . 1 . . . . . Data Loss (minor) 9 | . . . . . . 2 1 3 . 3 . Misfires 4 | . . . . . . 2 . 1 . 1 . Alerts 1 | . . . . . . . 1 . . . . Weapon Failures 1 | . . . . . . . 1 . . . . Overload Shots . | . . . . . . . . . . . . Overflow Damage 557 | . . . . . 144 167 . . . . 246 Projectiles . | . . . . . . . . . . . . Explosions 50 | . . . . . . . . . . . 50 Melee 507 | . . . . . 144 167 . . . . 196 Knockbacks 1 | . . . . . . . . . . . 1 Impact 1 | . . . . . . . . . . . 1 Kinetic . | . . . . . . . . . . . . Secondary . | . . . . . . . . . . . . Self-Inflicted Damage 89 | . . . . . . . . 33 . . 56 Shots 2 | . . . . . . . . 1 . . 1 Rammed 36 | . 4 7 7 1 11 6 . . . . . Targets Rammed 44 | 1 5 7 9 1 14 7 . . . . . Kicked . | . . . . . . . . . . . . Crushed 8 | 1 1 . 2 . 3 1 . . . . . Highest Temperature 316 | . 60 74 70 166 316 174 121 251 . 131 140 Average Temperature 48 | . 29 34 20 67 69 44 37 73 . 65 44 Received Heat Transfer 1762 | . 210 150 180 108 792 132 40 39 . 57 54 Siege Activations . | . . . . . . . . . . . . Robots Corrupted . | . . . . . . . . . . . . Combat Hostiles . | . . . . . . . . . . . . Parts Fried 7 | . . . . . . 3 . . . . 4 Impact Corruptions 13 | . . . . . 1 5 . . . . 7 Robots Melted . | . . . . . . . . . . . . Combat Hostiles . | . . . . . . . . . . . . Parts Melted . | . . . . . . . . . . . . Heat Transferred 944 | . 259 . . . . . . 185 . . 500 Parts Sabotaged . | . . . . . . . . . . . . Parts Stolen . | . . . . . . . . . . . . Parts Stripped . | . . . . . . . . . . . . Power Chain Reactions . | . . . . . . . . . . . . Missiles Intercepted . | . . . . . . . . . . . . Alert | -11 -10 -10 -9 -9 -8 -7 -7 -7 -7 -6 -6 ------- Run | Scr Mat Min Mat Min Mat Fac Low Low Dat Pro Fac Peak Influence 347 | 10 185 152 347 297 269 159 . . . . 307 Initial 127 | . 6 2 . 127 . 29 . . . . . Average 104 | 3 99 44 144 162 120 58 . . . . 123 Maximum Alert Level 1 | . . . 1 1 1 . . . . . 1 Low Security (%) 88 | 100 100 100 78 57 89 100 . . . . 78 Level 1 11 | . . . 21 42 10 . . . . . 21 Level 2 . | . . . . . . . . . . . . Level 3 . | . . . . . . . . . . . . Level 4 . | . . . . . . . . . . . . Level 5 . | . . . . . . . . . . . . High Security . | . . . . . . . . . . . . Max Security . | . . . . . . . . . . . . Squads Dispatched 27 | . 4 1 3 . 4 4 . . . . 11 Investigation 5 | . 1 1 1 . 1 1 . . . . . Extermination 7 | . . . . . . 3 . . . . 4 Reinforcement 11 | . 3 . 2 . 3 . . . . . 3 Assault 1 | . . . . . . . . . . . 1 Garrison 3 | . . . . . . . . . . . 3 Intercept . | . . . . . . . . . . . . Construction Impeded . | . . . . . . . . . . . . Haulers Reinforced . | . . . . . . . . . . . . Active Scanning Responses . | . . . . . . . . . . . . Cargo Convoy Interrupts 1 | . . . . . . . . . . . 1 Stealth | -11 -10 -10 -9 -9 -8 -7 -7 -7 -7 -6 -6 --------- Run | Scr Mat Min Mat Min Mat Fac Low Low Dat Pro Fac Distress Signals 10 | . 2 . 5 . 3 . . . . . . Communications Jammed . | . . . . . . . . . . . . Distress Signals . | . . . . . . . . . . . . Times Spotted 172 | . 22 12 44 9 46 13 1 3 . 4 18 Peak Tracking Total 10 | . 3 2 7 3 10 3 1 2 . 4 5 Tactical Retreats 5 | . . . 1 . 1 . . 1 . . 2 Traps | -11 -10 -10 -9 -9 -8 -7 -7 -7 -7 -6 -6 ------- Run | Scr Mat Min Mat Min Mat Fac Low Low Dat Pro Fac Traps Triggered 4 | . 1 . 1 . 1 1 . . . . . Indirectly . | . . . . . . . . . . . . Trap Hack Attempts . | . . . . . . . . . . . . Triggered . | . . . . . . . . . . . . Disarmed . | . . . . . . . . . . . . Reprogrammed . | . . . . . . . . . . . . Reused . | . . . . . . . . . . . . Traps Extracted . | . . . . . . . . . . . . Installed . | . . . . . . . . . . . . Triggered 1 | . . . . . . . . . . . 1 Machines | -11 -10 -10 -9 -9 -8 -7 -7 -7 -7 -6 -6 ---------- Run | Scr Mat Min Mat Min Mat Fac Low Low Dat Pro Fac Machines Disabled 10 | . . . 2 1 . . 1 . . . 6 Max in Single Turn 5 | . . . 1 1 . . 1 . . . 5 Garrison Access 3 | . . . . . 1 1 . . . . 1 Machines Sabotaged . | . . . . . . . . . . . . Garrisons Compromised 1 | . . . . . . . . . . . 1 Overloaded Fab Kills . | . . . . . . . . . . . . Hacking | -11 -10 -10 -9 -9 -8 -7 -7 -7 -7 -6 -6 --------- Run | Scr Mat Min Mat Min Mat Fac Low Low Dat Pro Fac Machines Accessed 42 | . 5 2 9 . 11 6 . . 4 . 5 Terminals 26 | . 4 1 7 . 7 4 . . . . 3 Fabricators 2 | . . . . . . 1 . . . . 1 Repair Stations 5 | . 1 . 2 . 2 . . . . . . Recycling Units 1 | . . . . . . . . . . . 1 Scanalyzers 1 | . . . . . 1 . . . . . . Garrison Access 2 | . . . . . 1 1 . . . . . Total Hacks 135 | . 13 5 31 . 30 13 . . 28 . 15 Successful 84 | . 4 3 18 . 21 4 . . 28 . 6 Failed 50 | . 8 2 13 . 9 9 . . . . 9 Catastrophic 9 | . . 1 1 . . 3 . . . . 4 Database Lockouts 1 | . 1 . . . . . . . . . . Manual 42 | . 7 4 14 . 11 3 . . . . 3 Terminals 77 | . 11 4 26 . 16 10 . . . . 10 Fabricators 5 | . . . . . . 2 . . . . 3 Repair Stations 18 | . 2 . 5 . 11 . . . . . . Recycling Units 2 | . . . . . . . . . . . 2 Scanalyzers 2 | . . . . . 2 . . . . . . Garrison Access 2 | . . . . . 1 1 . . . . . Terminal Hacks 55 | . 2 3 13 . 5 1 . . 28 . 3 Record 11 | . . . . . . . . . 11 . . Part Schematic 12 | . . 1 . . 1 . . . 10 . . Robot Schematic 4 | . . . . . . . . . 4 . . Robot Analysis 4 | . 2 1 . . . . . . . . 1 Prototype ID Bank 5 | . . . 2 . . . . . 3 . . Open Door 1 | . . 1 . . . . . . . . . Branch Access Points 4 | . . . 2 . . 1 . . . . 1 Alert Level 3 | . . . 2 . 1 . . . . . . Unreport Threat 3 | . . . 2 . 1 . . . . . . Locate Traps 6 | . . . 3 . 2 . . . . . 1 Hauler Manifests 1 | . . . 1 . . . . . . . . Registered Components 1 | . . . 1 . . . . . . . . Fabricator Hacks 3 | . . . . . . 2 . . . . 1 Load Schematic 2 | . . . . . . 1 . . . . 1 Build 1 | . . . . . . 1 . . . . . Repair Station Hacks 14 | . 1 . 3 . 10 . . . . . . Scan Component 8 | . 1 . 2 . 5 . . . . . . Repair 6 | . . . 1 . 5 . . . . . . Recycling Unit Hacks 1 | . . . . . . . . . . . 1 Retrieve Matter 1 | . . . . . . . . . . . 1 Scanalyzer 2 | . . . . . 2 . . . . . . Insert Component 1 | . . . . . 1 . . . . . . Analyze 1 | . . . . . 1 . . . . . . Garrison Access Hacks 2 | . . . . . 1 1 . . . . . Seal Access 2 | . . . . . 1 1 . . . . . Unauthorized Hacks 7 | . 1 . 2 . 3 . . . . . 1 Terminals 7 | . 1 . 2 . 3 . . . . . 1 Botnet 7 | . 1 . 2 . 3 . . . . . 1 Fabricators . | . . . . . . . . . . . . Repair Stations . | . . . . . . . . . . . . Recycling Units . | . . . . . . . . . . . . Scanalyzers . | . . . . . . . . . . . . Garrison Access . | . . . . . . . . . . . . Data Cores Recovered 1 | . . . . . 1 . . . . . . Used 1 | . . . . . 1 . . . . . . Hacking Detections 34 | . 5 1 9 . 9 5 . . . . 5 Full Trace Events 1 | . . . . . . 1 . . . . . Feedback Events . | . . . . . . . . . . . . Feedback Blocked . | . . . . . . . . . . . . Robot Schematics Acquired 4 | . . . . . . . . . 4 . . Robots Built . | . . . . . . . . . . . . Authchips . | . . . . . . . . . . . . Time . | . . . . . . . . . . . . Total Robot Build Rating . | . . . . . . . . . . . . Part Schematics Acquired 13 | . . 1 . . 2 . . . 10 . . Parts Built 1 | . . . . . . 1 . . . . . Authchips . | . . . . . . . . . . . . Time 17 | . . . . . . 17 . . . . . Total Part Build Rating 1 | . . . . . . 1 . . . . . Parts Repaired 6 | . . . 1 . 5 . . . . . . Time 303 | . . . 51 . 252 . . . . . . Parts Recycled . | . . . . . . . . . . . . Recycled Matter . | . . . . . . . . . . . . Retrieved Matter . | . . . . . . . . . . . . Retrieved Components . | . . . . . . . . . . . . Parts Scanalyzed 1 | . . . . . 1 . . . . . . Part Schematics Acquired 1 | . . . . . 1 . . . . . . Parts Damaged 1 | . . . . . 1 . . . . . . Bothacking | -11 -10 -10 -9 -9 -8 -7 -7 -7 -7 -6 -6 ------------ Run | Scr Mat Min Mat Min Mat Fac Low Low Dat Pro Fac Used RIF Installer . | . . . . . . . . . . . . Robots Hacked 1 | . . . . . . . . . . . 1 Non-combat 1 | . . . . . . . . . . . 1 Combat . | . . . . . . . . . . . . Robot Hacks Applied 1 | . . . . . . . . . . . 1 find_chute 1 | . . . . . . . . . . . 1 Relay Couplers Released 2 | . . . . . . . . . . . 2 Machine Destruction 2 | . . . . . . . . . . . 2 Fabnet Peak Effective % . | . . . . . . . . . . . . Robots Rewired . | . . . . . . . . . . . . Allies Hacked . | . . . . . . . . . . . . Hacks Repelled . | . . . . . . . . . . . . Allies | -11 -10 -10 -9 -9 -8 -7 -7 -7 -7 -6 -6 -------- Run | Scr Mat Min Mat Min Mat Fac Low Low Dat Pro Fac Total Allies 5 | . . 4 . . . . . . . 1 . Largest Group 4 | . . 4 4 . . . . . . 1 . Highest-Rated Group 96 | . . 71 71 . . . . . . 96 . Highest-Rated Ally 96 | . . 31 31 . . . . . . 96 . Total Orders . | . . . . . . . . . . . . Ally Attacks 76 | . . 9 51 . . . . . . 16 . Total Damage 1273 | . . 93 661 . . . . . . 519 . Kills 10 | . . 1 6 . . . . . . 3 . Allies Corrupted . | . . . . . . . . . . . . Allies Melted . | . . . . . . . . . . . . Intel | -11 -10 -10 -9 -9 -8 -7 -7 -7 -7 -6 -6 ------- Run | Scr Mat Min Mat Min Mat Fac Low Low Dat Pro Fac Robot Analysis Total 4 | . 2 1 . . . . . . . . 1 Derelict Logs Recovered 8 | . . 1 . 3 . . 1 2 . 1 . Drone Launches . | . . . . . . . . . . . . Drone Recoveries . | . . . . . . . . . . . . Exploration | -11 -10 -10 -9 -9 -8 -7 -7 -7 -7 -6 -6 ------------- Run | Scr Mat Min Mat Min Mat Fac Low Low Dat Pro Fac Turns Passed 14364 | 113 1249 1316 1841 826 2733 1977 563 1274 136 1149 1187 Spaces Moved 7618 | 62 665 697 936 481 1321 1126 341 721 82 554 632 Core 5 | 5 . . . . . . . . . . . Treads 7613 | 57 665 697 936 481 1321 1126 341 721 82 554 632 Legs . | . . . . . . . . . . . . Wheels . | . . . . . . . . . . . . Hover . | . . . . . . . . . . . . Flight . | . . . . . . . . . . . . Fastest Speed 50 | 50 160 160 160 160 158 156 156 156 158 158 161 Average Speed 159 | 151 160 160 160 160 160 157 156 157 158 160 162 Slowest Speed 317 | 160 160 160 160 240 240 159 156 158 158 161 317 Overloaded Moves . | . . . . . . . . . . . . Propulsion Burnouts . | . . . . . . . . . . . . Robots Hopped . | . . . . . . . . . . . . Cave-ins Triggered . | . . . . . . . . . . . . Exploration Rate (%) 61 | 5 79 98 91 90 80 36 46 69 68 67 11 Regions Visited 11 Branch Regions 6 Pre-discovered Areas 3 | . . 1 . 1 . . . . 1 . . Known Exits Taken 7 | . . . 1 . 1 1 1 1 1 1 . Unknown Exits Taken 4 | 1 1 1 . 1 . . . . . . . Scrap Searched 11 | . . 1 . 2 . . 1 3 . 4 . Spaces Dug 67 | . . . . . 12 3 . 45 . 7 . Terrain Destroyed 167 | . . . . . 15 3 . 69 . 16 64 Melee 6 | . . . . . 1 3 . 2 . . . Projectile 4 | . . . . . 3 . . 1 . . . AOE 157 | . . . . . 11 . . 66 . 16 64 Terrain Rammed . | . . . . . . . . . . . . Walls Destroyed . | . . . . . . . . . . . . Machines Disabled . | . . . . . . . . . . . . Actions | -11 -10 -10 -9 -9 -8 -7 -7 -7 -7 -6 -6 --------- Run | Scr Mat Min Mat Min Mat Fac Low Low Dat Pro Fac Total 9170 | 75 765 866 1147 507 1759 1276 357 811 89 798 720 Wait 869 | . 14 145 71 . 266 77 . 47 . 229 20 Move 7607 | 61 664 696 935 480 1320 1125 340 720 81 553 632 Hop . | . . . . . . . . . . . . Pick Up 80 | 5 11 . 25 3 17 10 . 1 . 1 7 Fast Attach 25 | 7 4 1 1 1 6 1 . . 4 . . Attach 23 | . 1 . 3 1 9 2 1 . . . 6 Detach 8 | . 5 1 1 . . . 1 . . . . Swap 109 | . 6 1 11 3 22 12 6 22 . 7 19 Drop 88 | . 11 1 24 5 23 13 1 1 4 1 4 Fire 307 | 1 44 14 67 13 80 25 8 18 . 7 30 Melee 10 | . . . . . 2 4 . 2 . . 2 Ram . | . . . . . . . . . . . . Kick . | . . . . . . . . . . . . Crush 44 | 1 5 7 9 1 14 7 . . . . . Escape Stasis . | . . . . . . . . . . . . Rewire . | . . . . . . . . . . . . Trap . | . . . . . . . . . . . . Miscellaneous . | . . . . . . . . . . . . Route ------- -11/Scrapyard -10/Materials (discovered 3 exits: *Mat x2 / *Min) -10/Mines (discovered 3 exits: *Mat x2 / [*Exi]) -9/Materials (discovered 4 exits: *Mat x2 / *Min x2) -9/Mines -8/Materials (discovered 3 exits: *Fac x3) -7/Factory (discovered 5 exits: *Fac / Sto x2 / *Low x2) -7/Lower Caves -7/Lower Caves -7/Data Miner -6/Proximity Caves -6/Factory (discovered 3 exits: Fac / *Low x2) History --------- Turn | Location | Event 5 | -11/Scrapyard | Discovered new exit (range 16) 114 | -11/Scrapyard | Entered Materials 213 | -10/Materials | Discovered new exit (range 16) 343 | -10/Materials | Discovered new exit (range 13) 352 | -10/Materials | Build established: Mutant 1124 | -10/Materials | Discovered new exit (range 13) 1180 | -10/Materials | Central database locked down 1363 | -10/Materials | Entered Mines 1389 | -10/Mines | Met a Derelict bent on vengeance 1438 | -10/Mines | Learned location of Storage (-7) 1534 | -10/Mines | Discovered new exit (range 12) 1554 | -10/Mines | Met a Derelict shopkeep closing up shop 1687 | -10/Mines | Core integrity fell below 50% 1805 | -10/Mines | Discovered new exit (range 7) 1826 | -10/Mines | Assisted by bots powering up and referring to "LRC-V3" 1842 | -10/Mines | Learned Materials security intel 1856 | -10/Mines | Assembled infested the area 2248 | -10/Mines | Escorted by a lone wolf Derelict 2533 | -10/Mines | Deemed a non-threat by the Exiles lab entrance 2533 | -10/Mines | Discovered new exit (range 5) 2679 | -10/Mines | Entered Materials 2679 | -9/Materials | Accompanied by 4 allies 2679 | -9/Materials | Evolved 2 slots: Propulsion x1, Weapon x1 2939 | -9/Materials | Discovered new exit (range 10) 2987 | -9/Materials | Build established: Tank 3416 | -9/Materials | Identified exit to Mines 3890 | -9/Materials | Build established: Scavenger-Tank 3979 | -9/Materials | Repaired Imp. Assault Rifle 4082 | -9/Materials | Discovered new exit (range 16) 4288 | -9/Materials | Build established: Tank 4520 | -9/Materials | Entered Mines 4605 | -9/Mines | Learned 4 Materials zone layouts 4740 | -9/Mines | Received a Rocket Launcher from a helpful Derelict 4741 | -9/Mines | Found a hidden stash of uninstalled traps 5031 | -9/Mines | Found a damaged Exp. Sensor Array with a note attached 5035 | -9/Mines | Found Prototype Device 5100 | -9/Mines | Learned Materials terminal intel 5253 | -9/Mines | A weapon hastily lodged in a ceiling crevice suddenly fell to the ground 5327 | -9/Mines | Discovered new exit (range 6) 5346 | -9/Mines | Entered Materials 5346 | -8/Materials | Evolved 2 slots: Propulsion x1, Utility x1 5347 | -8/Materials | Identified exit to Factory 5348 | -8/Materials | Loaded intel: 12 terminal locations 5739 | -8/Materials | Destroyed 7 combat bots 5762 | -8/Materials | Build established: Scavenger-Tank 5770 | -8/Materials | Lost 5 parts (1p2n2w) 6172 | -8/Materials | Discovered exit to Factory (range 16) 6545 | -8/Materials | Identified Exp. Sensor Array 6781 | -8/Materials | Repaired Broken Exp. Sensor Array 7243 | -8/Materials | Discovered exit to Factory (range 13) 7456 | -8/Materials | Repaired Hvy. Assault Rifle 7489 | -8/Materials | Repaired Hvy. Assault Rifle 7516 | -8/Materials | Repaired Lgt. Armor Plating 7544 | -8/Materials | Repaired Lgt. Treads 7825 | -8/Materials | Build established: Tank 8079 | -8/Materials | Entered Factory 8079 | -7/Factory | Evolved 2 slots: Propulsion x1, Weapon x1 8369 | -7/Factory | Build established: Scavenger-Tank 8430 | -7/Factory | Discovered new exit (range 10) 8584 | -7/Factory | Identified exit to Storage 8584 | -7/Factory | Identified exit to Lower Caves 8691 | -7/Factory | Build established: Mutant 9208 | -7/Factory | Build established: Tank 9653 | -7/Factory | Fabricated Huge Storage Unit (x1) 10056 | -7/Factory | Entered Lower Caves 10074 | -7/Lower Caves | Identified exit to Lower Caves 10242 | -7/Lower Caves | Attacked by a delusional Derelict stockpiling parts 10556 | -7/Lower Caves | Encountered a Warlord checkpoint 10601 | -7/Lower Caves | Build established: Skirmisher 10619 | -7/Lower Caves | Entered another Lower Caves area 10694 | -7/Lower Caves | Encountered a Warlord checkpoint 11371 | -7/Lower Caves | Learned 4 Factory zone layouts 11645 | -7/Lower Caves | Spotted B-75 Beast 11714 | -7/Lower Caves | Learned location of 1 exit from Factory 11880 | -7/Lower Caves | Discovered new exit (range 8) 11890 | -7/Lower Caves | Identified exit to Data Miner 11893 | -7/Lower Caves | Entered Data Miner 11893 | -7/Data Miner | Discovered new exit (range 6) 11900 | -7/Data Miner | Identified exit to Proximity Caves 11926 | -7/Data Miner | Met Data Miner 11954 | -7/Data Miner | Learned location of Section 7 (-2) 11954 | -7/Data Miner | Acquired the access code to Warlord's prototype stash 11979 | -7/Data Miner | Received God Mode back door access code from Data Miner 12029 | -7/Data Miner | Entered Proximity Caves 12225 | -6/Proximity Caves | Escorted by Enhanced Grunt 12426 | -6/Proximity Caves | Learned Factory emergency access door positions 12913 | -6/Proximity Caves | Build established: Mutant 12918 | -6/Proximity Caves | Discovered new exit (range 15) 12941 | -6/Proximity Caves | Identified exit to Factory 13081 | -6/Proximity Caves | Received a Behemoth hack from an annoying Tinkerer 13178 | -6/Proximity Caves | Entered Factory 13178 | -6/Factory | Evolved 2 slots: Utility x2 13179 | -6/Factory | Identified exit to Factory 13184 | -6/Factory | Identified exit to Lower Caves 13256 | -6/Factory | Build established: Skirmisher 13603 | -6/Factory | Garrison activated, responded to threat 14199 | -6/Factory | Cargo convoy interrupted 14232 | -6/Factory | Incoming assault squad redirected 14365 | -6/Factory | Self-destructed Last Messages --------------- 14337_ Slug penetrates H-61 Shepherd. 14337_ H-61 Shepherd destroyed. 14341_ Acquired 11 matter. 14342_ Slug penetrates Wall. 14342_ Arm. Treads destroyed. 14342_ Critical hit (Blast). 14345_ Penetrated by Slug. 14345_ Gauss Rifle destroyed. 14345_ Adv. Signal Interpreter destroyed. 14345_ Critical hit (Blast). 14347_ Slug penetrates Wall. 14349_ H-61 Shepherd calls for reinforcements. 14349_ ALERT: Hostile activity reported, dispatching reinforcements to area. 14353_ Penetrated by Slug. 14355_ Imp. Deuterium Engine destroyed. 14361_ H-61 Shepherd destroyed. 14361_ Switching to secondary target: X-72 Disruptor. 14361_ Hrd. Medium Armor Plating destroyed. 14364_ Adv. Treads destroyed. Map ----- +----------------------------------------------------+ | ??????????????????????????""" """""" ^^ | | ????????????????????????? """""" ^^ | | ????????????????????????? | | ????????????????????????? ####### | | ????????????????????????? ### ######## | | ?????????????????????????^ ^ ^^ ??# ## # | | ???????????? #????????????"""" * ??# ## """ # | | ???????????? ?????????????"" ??# ## """ # | | ???????????? ?????????????" ?## ## """ + | | ????????????"""" ??????????? ?# # # | | ???????????""""" ??????????? ? ?#] # # | | ???????? """ #########????# #?# > + ""# | | ??????? #????# #?# # |[""# | | ??????? #????# #?# #[ =Y"# | | ??????? #????# #?#######[* ""# | | ?????????????###+####+### #??### ###?????# ! ""# | | ???????????# # #??# #?????# # | | ???????????# """"""""" !# #??# #######+##### | | ???????????# # #??# #???? | | ???????????# """"""""" # #??# > #???? | | ????????????? # #??# #???? | | ?????????????####+####### #??# ## #???? | | ????????????? # #??# ## ###?? | | ???????????????""" # #??## ####### #?? | | ???????????????Y"" xx##??# #?????# #?? | | ???????????# ;@;##?# #?????# [ #?? | | ???????????# = #|%%### #?????########+### | | ???????????# ??#=%!! #????????# ! ! | | ???????????# """"h""????#%#######????????# | | ???????????????"" ??????# #??????????????# ! | | ????????????????????????# #??????????????# | | ????????????????????????# #??????????????######### | | ????????????????????????###??????????????????????? | | ?????????????????????????????????????????????????? | | ?????????????????????????????????????????????????? | | ?????????????????????????????????????????????????? | | ?????????????????????????????????????????????????? | | ?????????????????????????????????????????????????? | | ????????????????????????????????^????????????????? | | ?????????????????????????????????????????????????? | | ?????????????????????????????????????????????????? | | ?????????????????????????????????????????????????? | | ?????????????????????????????????????????????????? | | ?????????????????????????????????????????????????? | | ?????????????????????????????????????????????????? | | ?????????????????????????????????????????????????? | | ?????????????????????????????????????????????????? | | ?????????????????????????????????????????????????? | | ?????????????????????????????????????????????????? | | ?????????????????????????????????????????????????? | +----------------------------------------------------+ Best States ------------- Heat Dissipation 39 Energy Generation 16 Energy Capacity 290 Matter Stores 300 Matter Capacity 300 Sight Range 16 Robot Scan Range 20 Terrain Scan Range 16 Terrain Scan Density 10 Jamming Range 12 Armor Coverage 225 Resistance: TH 10 Weapon Cycling 15 Evasion (%) 40 Recoil Reduction 5 Offensive Hacking 11 Item Schematics ----------------- Cargo Storage Unit | -10/Mines | Hacked Exp. Sensor Array | -8/Materials | Scanalyzed Huge Storage Unit | -8/Materials | Hacked Combat Drone Bay | -7/Data Miner | Free Lgt. Regenerative Plating | -7/Data Miner | Free Cld. Aerolev Unit | -7/Data Miner | Free Thermal Defense Suite | -7/Data Miner | Free Imp. Heavy Laser | -7/Data Miner | Free Antigrav System | -7/Data Miner | Free Imp. Recalibrator | -7/Data Miner | Free Tesla Rifle | -7/Data Miner | Free Adv. Transmission Jammer | -7/Data Miner | Free Point Defense Array | -7/Data Miner | Free Robot Schematics ------------------ O-24 Administrator | -7/Data Miner | Free E-15 Imp | -7/Data Miner | Free A-15 Conveyor | -7/Data Miner | Free L-41 Fighter | -7/Data Miner | Free Fabricated ------------ Huge Storage Unit | x1 | -7/Factory Alien Tech Used ----------------- None Achievements -------------- None Challenges ------------ None Game ------ Seed ChromaticLightBattery Manual? 0 Play Time 01:31:46 Cumulative 339.3 hours Start 2022.02.11 @ 08:14:21 End 2022.02.11 @ 10:32:24 Sessions 3 Manual Loads 0 Difficulty Rogue Special Mode None Game No. 143 Rogue 143 Adventurer 0 Explorer 0 Win Type - Total 6 Types 1/2/1/0/0/2/0/0/0 Lore% 60 Gallery% 62 Achievement% 59 Wizard Run 0 Options --------- ASCII 0 Keyboard 1 Movement Vi Keybinds 0 Fullscreen 2 Font 12/Smallcaps Map View 60x54 Tactical HUD 1 Map Filters NONE Filters NONE Steam 1 RUN: 785956f4-ac45-4187-932c-67f007232687